fUST/lending_fUST_20251023
["ID","MTS","AMOUNT","RATE_DAILY","PERIOD"]
[392099515,1761161439888,-361.982078,0.00027924,2]
[392099516,1761161439898,-499.94951459,0.00027927,5]
[392099517,1761161439907,-1500.0,0.00027927,5]
[392099518,1761161439917,-740.99268942,0.00027927,5]
[392099519,1761161439927,-1500.0,0.00027927,5]
[392099520,1761161439936,-1500.0,0.00027927,5]
[392099521,1761161439945,-1500.0,0.00027927,5]
[392099522,1761161439955,-1500.0,0.00027927,5]
[392099523,1761161439966,-1025.74586575,0.00027927,5]
[392099524,1761161439975,-1680.0,0.00027944,2]
[392099525,1761161439985,-199.0,0.00027945,8]
[392099526,1761161439994,-15194.17797009,0.00028,2]
[392099527,1761161440003,-151.0,0.00028,30]
[392099528,1761161440013,-787.72292643,0.00028,2]
[392099529,1761161440024,-151.0,0.00028,30]
[392099530,1761161440033,-456.941525,0.00028,30]
[392099531,1761161440042,-456.941525,0.00028,30]
[392099532,1761161440051,-456.941525,0.00028,30]
[392099533,1761161440061,-456.941525,0.00028,30]
[392099534,1761161440071,-151.0,0.00028,30]
[392099535,1761161440080,-151.0,0.00028,30]
[392099536,1761161440089,-209.37164,0.00028,30]
[392099537,1761161440098,-4206.0,0.0002801,2]
[392099538,1761161440107,-151.0,0.00028079,30]
[392099539,1761161440117,-432.11243586,0.00028136,2]
[392099540,1761161440126,-151.0,0.00028159,7]
[392099541,1761161440135,-151.0,0.00028159,7]
[392099542,1761161440144,-404.46227763,0.00028159,5]
[392099543,1761161440153,-1001.10601427,0.00028159,5]
[392099544,1761161440163,-313.59,0.000282,4]
[392099545,1761161440172,-199.0,0.00028219,9]
[392099546,1761161440182,-360.0,0.00028343,2]
[392099548,1761161440191,-2000.0,0.00028475,5]
[392099549,1761161440202,-2000.0,0.00028475,5]
[392099550,1761161440211,-2000.0,0.00028475,5]
[392099552,1761161440220,-2000.0,0.00028475,5]
[392099553,1761161440229,-2000.0,0.00028475,5]
[392099554,1761161440239,-199.0,0.00028493,10]
[392099555,1761161440248,-32491.25403941,0.000285,7]
[392099556,1761161440258,-500.0,0.00028504,5]
[392099557,1761161440267,-500.0,0.00028504,5]
[392099558,1761161440276,-26626.65971563,0.0002876,2]
[392099559,1761161440285,-990.68799871,0.0002876,2]
[392099560,1761161440294,-4000.0,0.0002876,5]
[392099561,1761161440303,-2319.21272566,0.0002876,2]
[392099562,1761161440313,-250.40585376,0.0002876,2]
[392099563,1761161440322,-438.22,0.00028767,2]
[392099564,1761161440332,-438.22,0.00028767,2]
[392099565,1761161440424,-438.22,0.00028767,2]
[392099566,1761161440434,-438.22,0.00028767,2]
[392099567,1761161440443,-438.22,0.00028767,2]
[392099568,1761161440453,-438.22,0.00028767,2]
[392099569,1761161440462,-438.22,0.00028767,2]
[392099570,1761161440471,-438.22,0.00028767,2]
[392099571,1761161440481,-438.22,0.00028767,2]
[392099572,1761161440490,-438.22,0.00028767,2]
[392099573,1761161440499,-438.22,0.00028767,2]
[392099574,1761161440509,-438.22,0.00028767,2]
[392099575,1761161440519,-438.22,0.00028767,2]
[392099576,1761161440528,-438.22,0.00028767,2]
[392099577,1761161440537,-438.22,0.00028767,2]
[392099578,1761161440547,-438.22,0.00028767,2]
[392099579,1761161440557,-438.22,0.00028767,2]
[392099582,1761161440567,-438.22,0.00028767,2]
[392099584,1761161440577,-438.22,0.00028767,2]
[392099586,1761161440586,-438.22,0.00028767,2]
[392099588,1761161440596,-438.22,0.00028767,2]
[392099590,1761161440605,-438.22,0.00028767,2]
[392099592,1761161440615,-438.22,0.00028767,2]
[392099594,1761161440624,-438.34309408,0.00028767,2]
[392099596,1761161440633,-199.0,0.00028767,11]
[392099598,1761161440642,-151.0,0.00028767,2]
[392099600,1761161440652,-151.0,0.00028767,2]
[392099602,1761161440661,-151.0,0.00028767,2]
[392099604,1761161440670,-151.0,0.00028767,2]
[392099606,1761161440680,-151.0,0.00028767,2]
[392099608,1761161440689,-169.89105494,0.000288,7]
[392099609,1761161440699,-535.15002069,0.00028836,2]
[392099611,1761161440709,-460.0,0.00028891,2]
[392099614,1761161440719,-911.498655,0.00028937,2]
[392099616,1761161440728,-361.982078,0.00028937,2]
[392099618,1761161440737,-882.29458223,0.00029,2]
[392099620,1761161440747,-1169.40395253,0.00029,2]
[392099622,1761161440756,-502.61799314,0.00029,7]
[392099624,1761161440764,-2500.0,0.00029023,5]
[392099626,1761161440774,-2500.0,0.00029023,5]
[392099628,1761161440783,-2500.0,0.00029023,5]
[392099630,1761161440793,-2500.0,0.00029023,5]
[392099632,1761161440802,-2500.0,0.00029023,5]
[392099634,1761161440811,-60061.74073658,0.0002904,2]
[392099636,1761161440820,-199.0,0.00029041,12]
[392099638,1761161440830,-1000.0,0.00029052,5]
[392099640,1761161440839,-177.87051647,0.00029073,21]
[392099642,1761161440849,-250.298,0.00029073,21]
[392099644,1761161440858,-720.0,0.00029095,30]
[392099646,1761161440867,-17230.63,0.000291,7]
[392099648,1761161440877,-228.384325,0.000291,30]
[392099650,1761161440885,-456.941525,0.000291,30]
[392099652,1761161440895,-456.941525,0.000291,30]
[392099654,1761161440904,-456.941525,0.000291,30]
[392099656,1761161440914,-456.941525,0.000291,30]
[392099658,1761161440924,-151.0,0.000291,30]
[392099660,1761161440933,-151.0,0.000291,30]
[392099662,1761161440942,-183.031517,0.00029239,60]
[392099664,1761161440952,-301.07,0.00029259,2]
[392099666,1761161440962,-313.59,0.000293,4]
[392099668,1761161440971,-199.0,0.00029315,13]
[392099670,1761161440980,-983.0,0.00029348,2]
[392099671,1761161440989,-632.0,0.00029348,2]
[392099674,1761161440999,-2164.0,0.00029348,2]
[392099675,1761161441008,-411.0,0.00029348,2]
[392099677,1761161441017,-2021.11721159,0.0002939,5]
[392099679,1761161441027,-560.0,0.00029439,2]
[392099681,1761161441036,-417.15472785,0.00029543,2]
[392099683,1761161441046,-403.14601822,0.00029543,2]
[392099685,1761161441056,-95000.0,0.0002956,2]
[392099687,1761161441067,-3000.0,0.0002957,5]
[392099689,1761161441076,-2000.0,0.0002957,5]
[392099690,1761161441085,-3000.0,0.0002957,5]
[392099692,1761161441094,-3000.0,0.0002957,5]
[392099694,1761161441103,-500.0,0.0002957,5]
[392099696,1761161441112,-500.0,0.00029573,5]
[392099698,1761161441124,-199.0,0.00029589,14]
[392099700,1761161441134,-169.0,0.00029589,35]
[392099702,1761161441143,-1198.67647978,0.000296,5]
[392099703,1761161441152,-1697.91,0.000297,7]
[392099704,1761161441161,-627.18,0.000297,5]
[392099705,1761161441170,-15826.95654765,0.00029845,2]
[392099706,1761161441179,-199.0,0.00029863,15]
[392099707,1761161441189,-248.41473454,0.000299,2]
[392099708,1761161441201,-447.14652217,0.000299,2]
[392099709,1761161441212,-794.92715053,0.000299,2]
[392099710,1761161441222,-197.88623985,0.000299,2]
[392099711,1761161441231,-791.54495941,0.000299,2]
[392099712,1761161441242,-1780.97615867,0.000299,2]
[392099714,1761161441251,-658.38949123,0.000299,2]
[392099716,1761161441260,-1185.10108422,0.000299,2]
[392099718,1761161441269,-2106.84637194,0.000299,2]
[392099721,1761161441290,-3291.94745616,0.000299,2]
[392099723,1761161441299,-3166.17983764,0.000299,2]
[392099725,1761161441308,-8426.93997241,0.000299,2]
[392099727,1761161441318,-911.498655,0.00029949,2]
[392099729,1761161441328,-361.982078,0.00029949,2]
[392099731,1761161441337,-660.0,0.00029987,2]
[392099733,1761161441346,-210.50925,0.0003,2]
[392099735,1761161441355,-911.498655,0.0003,15]
[392099737,1761161441365,-361.982078,0.0003,15]
[392099739,1761161441375,-274210.49076482,0.0003,15]
[392099743,1761161441395,-7413.15440256,0.0003,15]
[392099745,1761161441406,-1027.49032442,0.0003,15]
[392099758,1761161441524,-383.16140013,0.0003,15]
[392099937,1761161443188,-279.42,0.0002849,10]
[392099938,1761161443199,-11390.22526804,0.000299,2]
[392099941,1761161443212,-45505.09415127,0.0003,15]
[392099950,1761161443296,-1831.81129583,0.0003,15]
[392099957,1761161443351,-501.2030503,0.0003,15]
[392100244,1761161446418,-9326.59999978,0.0003,15]
[392100246,1761161446429,-692.25170984,0.0003,15]
[392100252,1761161446473,-295.13886484,0.0003,15]
[392105038,1761161502895,150.0,0.00021621,2]
[392105039,1761161503317,150.0,0.00023587,2]
[392105040,1761161578509,150.0,0.00021617,2]
[392105041,1761161578861,150.0,0.00023583,2]
[392105042,1761161652667,150.0,0.00021886,2]
[392105043,1761161653084,150.0,0.00023875,2]
[392105044,1761161719001,417.15472785,0.000241,2]
[392105045,1761161726977,150.0,0.00021734,2]
[392105046,1761161727390,150.0,0.00023709,2]
[392105047,1761161744512,417.15472785,0.000241,2]
[392105048,1761161798280,150.0,0.00021692,2]
[392105049,1761161798674,150.0,0.00023664,2]
[392105050,1761161870750,150.0,0.00021171,2]
[392105051,1761161871151,150.0,0.00023096,2]
[392105052,1761161945419,150.0,0.00020976,2]
[392105053,1761161945872,150.0,0.00022883,2]
[392105055,1761161957978,678.902573,0.00013699,2]
[392105056,1761161958194,678.902573,0.00020187,2]
[392105057,1761162018358,150.0,0.00020981,2]
[392105058,1761162018752,150.0,0.00022888,2]
[392105063,1761162088858,150.0,0.00021372,2]
[392105064,1761162089276,150.0,0.00023315,2]
[392105065,1761162160225,150.0,0.00021369,2]
[392105066,1761162160651,150.0,0.00023311,2]
[392105067,1761162187591,300.0,0.000233,2]
[392105068,1761162225051,5000.0,0.000242,2]
[392105069,1761162230065,150.0,0.0002237,2]
[392105070,1761162247476,5000.0,0.000242,2]
[392105071,1761162269672,5000.0,0.000242,2]
[392105072,1761162291917,1775.5363937,0.000242,2]
[392105073,1761162298637,150.0,0.00022364,2]
[392105100,1761162362968,150.0,0.00022367,2]
[392105101,1761162427229,150.0,0.00022339,2]
[392105105,1761162462916,1217.7542566,0.00024144,2]
[392105106,1761162491495,150.0,0.00022342,2]
[392105129,1761162557553,150.0,0.00022171,2]
[392105130,1761162557832,150.0,0.00024187,2]
[392105161,1761162563696,666.0,0.00023926,2]
[392105162,1761162623673,150.0,0.00024196,2]
[392105186,1761162632207,-490.523263,0.00024242,2]
[392105188,1761162632217,-160.6980796,0.00024322,2]
[392105233,1761162637988,-241.90865702,0.00024322,2]
[392105234,1761162637998,-1200.0,0.00024524,2]
[392105235,1761162638008,-270.0,0.00024524,2]
[392105236,1761162638017,-300.0,0.00024524,2]
[392105237,1761162638027,-300.0,0.00024524,2]
[392105238,1761162638037,-1200.0,0.00024524,2]
[392105239,1761162638047,-300.0,0.00024524,2]
[392105240,1761162638056,-14843.6849327,0.00024526,2]
[392105241,1761162638066,-160.0,0.00024857,2]
[392105242,1761162638077,-205.83530187,0.0002545,2]
[392105243,1761162638087,-16755.89195571,0.00025513,2]
[392105244,1761162638097,-454.87608076,0.00025603,2]
[392105245,1761162638106,-409.84979979,0.00025603,2]
[392105246,1761162638116,-500.0,0.00025603,2]
[392105247,1761162638126,-500.0,0.00025603,2]
[392105248,1761162638137,-500.0,0.00025603,2]
[392105249,1761162638147,-188.83233114,0.00025603,2]
[392105250,1761162638158,-500.0,0.00025603,2]
[392105251,1761162638167,-500.0,0.00025603,2]
[392105252,1761162638177,-500.0,0.00025603,2]
[392105253,1761162638187,-500.0,0.00025603,2]
[392105254,1761162638197,-500.0,0.00025603,2]
[392105255,1761162638207,-500.0,0.00025603,2]
[392105256,1761162638217,-500.0,0.00025603,2]
[392105257,1761162638227,-500.0,0.00025603,2]
[392105258,1761162638236,-500.0,0.00025603,2]
[392105259,1761162638247,-500.0,0.00025603,2]
[392105260,1761162638257,-500.0,0.00025603,2]
[392105261,1761162638267,-500.0,0.00025603,2]
[392105262,1761162638276,-500.0,0.00025603,2]
[392105263,1761162638287,-378.57667796,0.00025603,2]
[392105264,1761162638297,-168.53778592,0.00025603,2]
[392105265,1761162638306,-500.0,0.00025603,2]
[392105266,1761162638316,-500.0,0.00025603,2]
[392105267,1761162638326,-500.0,0.00025603,2]
[392105268,1761162638336,-500.0,0.00025603,2]
[392105269,1761162638345,-500.0,0.00025603,2]
[392105270,1761162638355,-507.94063393,0.00025603,2]
[392105271,1761162638364,-500.0,0.00025603,2]
[392105272,1761162638375,-500.0,0.00025603,2]
[392105273,1761162638385,-500.0,0.00025603,2]
[392105274,1761162638395,-500.0,0.00025603,2]
[392105275,1761162638404,-500.0,0.00025603,2]
[392105276,1761162638413,-500.0,0.00025603,2]
[392105277,1761162638423,-500.0,0.00025603,2]
[392105278,1761162638433,-500.0,0.00025603,2]
[392105279,1761162638442,-575.94186557,0.00025603,2]
[392105280,1761162638452,-477.44768442,0.00025603,2]
[392105281,1761162638462,-500.0,0.00025603,2]
[392105282,1761162638471,-500.0,0.00025603,2]
[392105283,1761162638480,-500.0,0.00025603,2]
[392105284,1761162638490,-532.37037248,0.00025603,2]
[392105285,1761162638499,-500.0,0.00025603,2]
[392105286,1761162638509,-500.0,0.00025603,2]
[392105287,1761162638518,-500.0,0.00025603,2]
[392105288,1761162638528,-500.0,0.00025603,2]
[392105289,1761162638538,-256.39009105,0.00025603,2]
[392105290,1761162638548,-500.0,0.00025603,2]
[392105292,1761162638557,-500.0,0.00025603,2]
[392105294,1761162638567,-547.73582639,0.00025604,2]
[392105296,1761162638578,-583.48765897,0.00025605,2]
[392105298,1761162638587,-152.3612631,0.00025614,2]
[392105300,1761162638596,-151.0,0.00025614,2]
[392105302,1761162638606,-200.15840008,0.00025614,2]
[392105304,1761162638615,-278.97632628,0.00025614,2]
[392105306,1761162638624,-500.0,0.00025615,2]
[392105308,1761162638637,-835.49,0.00025643,10]
[392105310,1761162638647,-896.95,0.00025643,10]
[392105312,1761162638659,-1524.77,0.00025653,3]
[392105314,1761162638669,-762.39,0.00025653,3]
[392105316,1761162638680,-381.19,0.00025653,3]
[392105318,1761162638690,-211.77,0.00025653,3]
[392105320,1761162638700,-635.36,0.00025653,3]
[392105322,1761162638710,-167.95186445,0.00025662,2]
[392105324,1761162638719,-307.56467826,0.00025662,2]
[392105326,1761162638729,-60321.1775363,0.00025663,2]
[392105328,1761162638739,-151.0,0.00025669,2]
[392105330,1761162638749,-500.0,0.00025673,2]
[392105332,1761162638758,-500.0,0.00025673,2]
[392105333,1761162638768,-500.0,0.00025673,2]
[392105335,1761162638777,-500.0,0.00025673,2]
[392105337,1761162638787,-500.0,0.00025673,2]
[392105338,1761162638796,-500.0,0.00025673,2]
[392105339,1761162638805,-151.0,0.00025693,2]
[392105340,1761162638814,-151.0,0.00025695,2]
[392105341,1761162638824,-60321.1775363,0.00025695,2]
[392105342,1761162638833,-241284.710145,0.00025706,2]
[392105343,1761162638964,-370000.0,0.00025716,2]
[392105344,1761162638974,-151.0,0.00025716,7]
[392105346,1761162638984,-151.0,0.00025716,7]
[392105348,1761162638994,-151.0,0.00025716,7]
[392105350,1761162639004,-151.0,0.00025716,7]
[392105352,1761162639014,-548.32983,0.00025716,7]
[392105354,1761162639024,-548.32983,0.00025716,7]
[392105356,1761162639033,-198.0,0.00025724,2]
[392105358,1761162639043,-151.0,0.00025748,2]
[392105360,1761162639053,-507.94926773,0.00025773,2]
[392105362,1761162639063,-500.0,0.00025773,2]
[392105364,1761162639073,-500.0,0.00025773,2]
[392105366,1761162639082,-500.0,0.00025773,2]
[392105368,1761162639092,-508.33463292,0.00025773,2]
[392105370,1761162639101,-530.93053923,0.00025773,2]
[392105372,1761162639111,-500.0,0.00025773,2]
[392105374,1761162639121,-500.0,0.00025773,2]
[392105376,1761162639131,-500.0,0.00025773,2]
[392105378,1761162639141,-500.0,0.00025773,2]
[392105380,1761162639151,-500.0,0.00025773,2]
[392105382,1761162639161,-500.0,0.00025773,2]
[392105384,1761162639171,-500.0,0.00025773,2]
[392105386,1761162639181,-500.0,0.00025773,2]
[392105388,1761162639191,-500.0,0.00025773,2]
[392105390,1761162639202,-306.77318573,0.00025773,2]
[392105392,1761162639213,-343.43017407,0.00025773,2]
[392105394,1761162639223,-500.0,0.00025773,2]
[392105396,1761162639233,-500.0,0.00025773,2]
[392105398,1761162639243,-500.0,0.00025773,2]
[392105400,1761162639253,-325.53850932,0.00025773,2]
[392105402,1761162639266,-500.0,0.00025773,2]
[392105404,1761162639275,-500.0,0.00025773,2]
[392105406,1761162639286,-500.0,0.00025773,2]
[392105408,1761162639296,-217.06687572,0.00025777,2]
[392105410,1761162639306,-17230.63,0.000258,7]
[392105412,1761162639316,-151.0,0.00025803,2]
[392105414,1761162639325,-500.0,0.00025815,2]
[392105416,1761162639334,-531.15446138,0.00025818,2]
[392105418,1761162639344,-510.1697177,0.00025825,2]
[392105420,1761162639354,-151.0,0.00025857,2]
[392105422,1761162639363,-500.0,0.00025889,2]
[392105423,1761162639372,-191.0,0.00025912,2]
[392105426,1761162639384,-89349.51063744,0.0002599,2]
[392105427,1761162639393,-911.498655,0.00026,2]
[392105429,1761162639403,-361.982078,0.00026,2]
[392105431,1761162639412,-500.0,0.00026163,2]
[392105433,1761162639422,-472.25,0.00026221,2]
[392105435,1761162639431,-1001.10601427,0.00026221,2]
[392105437,1761162639440,-1000.0,0.00026221,2]
[392105439,1761162639449,-1017.8156044,0.00026221,2]
[392105441,1761162639459,-1127.3819389,0.00026221,2]
[392105443,1761162639468,-168.0,0.00026283,2]
[392105445,1761162639478,-2085.41,0.00026314,2]
[392105447,1761162639489,-404.46227763,0.00026321,2]
[392105449,1761162639499,-880.0430271,0.00026321,2]
[392105451,1761162639509,-1000.0,0.00026321,2]
[392105453,1761162639518,-1000.0,0.00026321,2]
[392105455,1761162639528,-1000.0,0.00026321,2]
[392105457,1761162639537,-1000.0,0.00026321,2]
[392105459,1761162639547,-1000.0,0.00026321,2]
[392105461,1761162639556,-1131.20087286,0.00026321,2]
[392105463,1761162639565,-1000.0,0.00026321,2]
[392105465,1761162639575,-1000.0,0.00026321,2]
[392105467,1761162639584,-1000.0,0.00026321,2]
[392105469,1761162639594,-1000.0,0.00026321,2]
[392105471,1761162639604,-1000.0,0.00026321,2]
[392105473,1761162639613,-1000.0,0.00026321,2]
[392105475,1761162639622,-475.07594921,0.00026322,2]
[392105477,1761162639632,-271.48711904,0.00026437,2]
[392105479,1761162639644,-1680.0,0.00026581,2]
[392105482,1761162639656,-420.0,0.00026581,2]
[392105484,1761162639665,-160.0,0.00026607,2]
[392105486,1761162639675,-678.902573,0.00026676,2]
[392105488,1761162639685,-583.48765895,0.00026679,2]
[392105490,1761162639695,-1680.0,0.00026702,2]
[392105492,1761162639705,-168.0,0.00026724,2]
[392105494,1761162639715,-151.0,0.00026759,7]
[392105496,1761162639724,-151.0,0.00026759,7]
[392105498,1761162639735,-151.0,0.00026768,2]
[392105500,1761162639746,-151.0,0.00026768,2]
[392105502,1761162639756,-151.0,0.00026768,2]
[392105504,1761162639765,-151.0,0.00026768,2]
[392105506,1761162639775,-254.27842763,0.00026849,22]
[392105508,1761162639785,-428.12470712,0.00026868,2]
[392105510,1761162639794,-1500.0,0.00026868,2]
[392105512,1761162639803,-1500.0,0.00026868,2]
[392105514,1761162639812,-740.99268942,0.00026868,2]
[392105516,1761162639822,-1198.67647978,0.00026868,2]
[392105518,1761162639831,-499.94951459,0.00026868,2]
[392105520,1761162639840,-1500.0,0.00026868,2]
[392105522,1761162639850,-1009.58762937,0.00026868,2]
[392105524,1761162639859,-1500.0,0.00026868,2]
[392105526,1761162639868,-1025.74586575,0.00026868,2]
[392105528,1761162639878,-1500.0,0.00026868,2]
[392105530,1761162639887,-911.498655,0.00026998,2]
[392105532,1761162639897,-361.982078,0.00026998,2]
[392105533,1761162639907,-940.82519524,0.00027,3]
[392105535,1761162639916,-3049.54,0.00027023,3]
[392105537,1761162639926,-1524.78,0.00027023,3]
[392105538,1761162639935,-635.32,0.00027023,3]
[392105539,1761162639945,-423.54,0.00027023,3]
[392105540,1761162639954,-228.384325,0.00027023,7]
[392105541,1761162639964,-151.0,0.00027023,7]
[392105543,1761162639974,-209.37164,0.00027023,7]
[392105545,1761162639983,-151.0,0.00027023,7]
[392105547,1761162639992,-548.32983,0.00027023,7]
[392105549,1761162640002,-548.32983,0.00027023,7]
[392105551,1761162640012,-151.0,0.00027066,7]
[392105553,1761162640021,-151.0,0.00027066,7]
[392105555,1761162640031,-168.0,0.00027125,2]
[392105557,1761162640040,-168.0,0.00027141,2]
[392105559,1761162640050,-260.0,0.00027155,2]
[392105562,1761162640059,-168.0,0.00027201,2]
[392105563,1761162640069,-2909.46,0.000274,2]
[392105565,1761162640078,-1697.91,0.000274,7]
[392105567,1761162640087,-500.0,0.000274,5]
[392105569,1761162640096,-502.66916721,0.000274,5]
[392105571,1761162640107,-212.61274819,0.000274,5]
[392105573,1761162640116,-500.0,0.000274,5]
[392105575,1761162640125,-158.12521565,0.000274,2]
[392105577,1761162640135,-158.52362636,0.000274,5]
[392105579,1761162640144,-168.0,0.00027403,2]
[392105582,1761162640155,-2000.0,0.00027416,5]
[392105584,1761162640164,-2000.0,0.00027416,5]
[392105586,1761162640174,-2000.0,0.00027416,5]
[392105588,1761162640183,-2000.0,0.00027416,5]
[392105589,1761162640193,-500.0,0.00027416,5]
[392105591,1761162640203,-168.0,0.00027525,2]
[392105593,1761162640212,-168.0,0.00027634,2]
[392105595,1761162640222,-168.0,0.00027661,2]
[392105597,1761162640232,-168.0,0.00027664,2]
[392105599,1761162640242,-313.59,0.00027664,3]
[392105601,1761162640252,-199.0,0.00027671,7]
[392105602,1761162640261,-168.0,0.00027676,2]
[392105604,1761162640271,-360.0,0.00027703,2]
[392105606,1761162640281,-583.48765895,0.00027753,2]
[392105608,1761162640290,-168.0,0.00027876,2]
[392105610,1761162640300,-168.0,0.00027886,2]
[392105612,1761162640310,-168.0,0.00027944,2]
[392105614,1761162640319,-199.0,0.00027945,8]
[392105615,1761162640329,-418.19602831,0.00027948,5]
[392105617,1761162640339,-500.0,0.0002795,2]
[392105618,1761162640348,-500.0,0.0002795,5]
[392105619,1761162640358,-500.0,0.0002795,5]
[392105620,1761162640367,-500.0,0.0002795,5]
[392105621,1761162640376,-505.59155942,0.0002795,5]
[392105622,1761162640386,-501.06798052,0.0002795,5]
[392105623,1761162640395,-597.77637791,0.0002795,5]
[392105624,1761162640405,-502.53122103,0.0002795,5]
[392105625,1761162640414,-502.11075442,0.0002795,5]
[392105626,1761162640423,-500.58622512,0.0002795,5]
[392105628,1761162640432,-502.14047218,0.0002795,5]
[392105629,1761162640442,-500.0,0.0002795,5]
[392105630,1761162640451,-500.0,0.0002795,5]
[392105631,1761162640461,-500.0,0.0002795,5]
[392105633,1761162640471,-500.0,0.0002795,5]
[392105635,1761162640481,-502.46996771,0.0002795,5]
[392105636,1761162640491,-500.0,0.0002795,5]
[392105637,1761162640500,-500.0,0.0002795,5]
[392105638,1761162640509,-500.0,0.0002795,5]
[392105639,1761162640519,-500.0,0.0002795,5]
[392105640,1761162640528,-2500.0,0.00027964,5]
[392105641,1761162640537,-2500.0,0.00027964,5]
[392105642,1761162640547,-2500.0,0.00027964,5]
[392105643,1761162640556,-2500.0,0.00027964,5]
[392105644,1761162640566,-911.498655,0.00027997,2]
[392105645,1761162640575,-361.982078,0.00027997,2]
[392105646,1761162640585,-632.0,0.00028209,2]
[392105647,1761162640594,-983.0,0.00028209,2]
[392105648,1761162640604,-411.0,0.00028209,2]
[392105649,1761162640613,-2164.0,0.00028209,2]
[392105650,1761162640623,-4206.0,0.00028209,2]
[392105651,1761162640632,-199.0,0.00028219,9]
[392105652,1761162640641,-460.0,0.00028251,2]
[392105653,1761162640651,-17230.63,0.000283,7]
[392105654,1761162640664,-547.5451618,0.00028322,2]
[392105655,1761162640673,-168.0,0.0002835,2]
[392105656,1761162640683,-199.0,0.00028493,10]
[392105657,1761162640693,-1001.21083915,0.00028498,2]
[392105658,1761162640704,-1000.0,0.00028498,5]
[392105659,1761162640714,-1002.70253193,0.00028498,5]
[392105660,1761162640723,-1000.0,0.00028498,5]
[392105661,1761162640735,-1000.0,0.00028498,5]
[392105662,1761162640744,-1000.0,0.00028498,5]
[392105663,1761162640754,-1000.0,0.00028498,5]
[392105664,1761162640764,-1000.0,0.00028498,5]
[392105665,1761162640774,-183.27816794,0.00028498,5]
[392105666,1761162640783,-614.53254891,0.00028498,5]
[392105667,1761162640793,-1000.0,0.00028498,5]
[392105668,1761162640803,-2000.0,0.00028512,5]
[392105669,1761162640812,-3000.0,0.00028512,5]
[392105670,1761162640822,-3000.0,0.00028512,5]
[392105671,1761162640831,-500.0,0.00028512,5]
[392105672,1761162640840,-168.0,0.00028525,2]
[392105673,1761162640850,-168.0,0.00028634,2]
[392105674,1761162640860,-438.22,0.00028767,2]
[392105675,1761162640869,-438.22,0.00028767,2]
[392105676,1761162640879,-438.22,0.00028767,2]
[392105677,1761162640889,-438.22,0.00028767,2]
[392105678,1761162640899,-438.22,0.00028767,2]
[392105679,1761162640909,-438.22,0.00028767,2]
[392105680,1761162640919,-438.22,0.00028767,2]
[392105681,1761162640929,-438.22,0.00028767,2]
[392105682,1761162640939,-438.22,0.00028767,2]
[392105683,1761162640948,-438.22,0.00028767,2]
[392105684,1761162640959,-438.22,0.00028767,2]
[392105685,1761162640969,-438.22,0.00028767,2]
[392105686,1761162640978,-438.22,0.00028767,2]
[392105687,1761162640988,-438.22,0.00028767,2]
[392105688,1761162640997,-438.22,0.00028767,2]
[392105689,1761162641007,-438.22,0.00028767,2]
[392105690,1761162641017,-438.22,0.00028767,2]
[392105691,1761162641026,-438.22,0.00028767,2]